bitfinex-derivatives/quotes_SOLF0:USTF0_20251125
["timestamp","ask_amount","ask_price","bid_price","bid_amount"]
[1764099329381,21.9888911,135.06,135.05,1.84088115]
[1764099330184,103.7163,135.05,134.98,3.12]
[1764099330380,35.32492794,135.04,134.98,3.12]
[1764099330680,6.6688,135.02,134.98,3.12]
[1764099330874,103.7308,135.03,134.98,3.12]
[1764099331084,5.45997795,135.02,135.01,1.83894822]
[1764099331490,12.12877795,135.02,135.01,1.83894822]
[1764099332083,6.6698,135.0,134.99,0.05548813]
[1764099332282,32.2698,135.0,134.99,0.05548813]
[1764099333286,0.04961643,135.02,134.99,3.17548813]
[1764099333490,0.04961643,135.02,135.01,4.95437256]
[1764099333691,0.04961643,135.02,135.01,3.12]
[1764099335392,0.04961643,135.02,135.01,4.6]
[1764099336804,0.04961643,135.02,135.01,3.12]
[1764099341988,2.99961643,135.02,134.99,3.17548813]
[1764099343298,2.99961643,135.02,134.99,0.05548813]
[1764099343502,9.66841643,135.02,135.0,1.83250862]
[1764099343687,2.95,135.01,135.0,1.83250862]
[1764099344799,9.6194,135.01,134.99,0.05548813]
[1764099344993,2.95,135.0,134.99,0.05548813]
[1764099347300,6.71841643,135.02,134.99,0.05548813]
[1764099347301,3.00961643,135.02,134.99,0.05548813]
[1764099347498,3.00961643,135.02,135.0,1.83139146]
[1764099347499,25.58,135.01,135.0,1.83139146]
[1764099347700,25.58,135.01,134.99,2.92548813]
[1764099348307,28.54,135.01,134.99,0.05548813]
[1764099348511,25.58,135.01,134.99,2.92548813]
[1764099351001,0.04961643,135.02,134.99,2.92548813]
[1764099352705,10.92443486,135.09,135.0,2.87]
[1764099353015,10.92443486,135.09,134.98,103.7633]
[1764099353016,28.59,135.08,135.07,1.8321239]
[1764099356607,31.35395062,135.08,135.07,1.8321239]
[1764099356999,1.18,135.07,134.99,2.87]
[1764099357311,1.18,135.07,134.94,117.1374]
[1764099357312,2.76395062,135.06,135.05,1.8346844]
[1764099359003,3.94395062,135.06,135.05,1.8346844]
[1764099360412,16.01328669,135.06,135.04,0.05182053]
[1764099360606,10.61125062,135.06,135.05,1.83728917]
[1764099360905,0.04896765,135.07,135.05,5.02728917]
[1764099361107,1.18,135.06,134.99,3.19]
[1764099361306,1.18,135.04,135.03,1.83724956]
[1764099361502,6.57978963,135.04,135.03,1.83724956]
[1764099361904,1.18,135.03,135.02,1.83724956]
[1764099362105,26.76,135.03,135.02,1.83817832]
[1764099362306,1.18,135.02,134.96,3.19]
[1764099362508,3.94395062,135.01,134.96,3.19]
[1764099362810,35.01275062,135.03,134.98,3.19]
[1764099363009,36.19275062,135.03,134.98,3.19]
[1764099363411,36.19275062,135.03,135.02,1.8392136]
[1764099363610,41.59434337,135.03,135.02,1.8392136]
[1764099364316,38.83039275,135.03,135.02,1.8392136]
[1764099364515,41.59434337,135.03,135.02,1.8392136]
[1764099364910,40.41434337,135.03,135.01,0.04866263]
[1764099365214,5.40159275,135.02,135.01,0.04866263]
[1764099365712,10.97385961,135.02,135.01,0.04866263]
[1764099366315,5.40159275,135.02,135.01,0.04866263]
[1764099368611,114.7269345,135.02,134.96,3.19]
[1764099368812,5.40159275,135.01,134.99,1.84189774]
[1764099369015,5.40159275,135.0,134.99,9.774e-05]
[1764099370320,5.41852471,135.0,134.99,9.774e-05]
[1764099371525,6.6703,134.99,134.98,0.05515771]
[1764099371818,37.66882471,134.99,134.98,0.05515771]
[1764099372629,32.2503,134.99,134.98,0.05515771]
[1764099373126,6.6703,134.99,134.98,0.05515771]
[1764099373323,32.2303,134.99,134.98,0.05515771]
[1764099375523,25.56,134.99,134.98,3.24515771]
[1764099375721,25.56,134.99,134.98,0.05515771]
[1764099376423,32.2303,134.99,134.98,0.05515771]
[1764099377208,0.05108023,135.01,134.98,3.24515771]
[1764099377409,25.61108023,135.01,135.0,4.84139215]
[1764099377612,25.61108023,135.01,135.0,3.0]
[1764099377820,5.42048952,135.05,135.01,3.0]
[1764099378023,25.56,135.06,135.01,3.0]
[1764099378226,25.56,135.06,135.05,1.84087226]
[1764099378423,25.56,135.06,135.01,3.0]
[1764099378620,25.56,135.06,135.05,1.84074212]
[1764099378816,30.98092486,135.06,135.05,1.84074212]
[1764099379015,25.56,135.06,135.04,0.05194989]
[1764099379228,25.56,135.06,135.05,1.84074212]
[1764099379420,25.56,135.06,135.04,0.05194989]
[1764099379621,25.56,135.06,135.04,3.05194989]
[1764099382630,0.04725307,135.07,135.04,3.05194989]
[1764099383029,0.04725307,135.07,135.04,0.05194989]
[1764099383228,0.04725307,135.07,135.04,3.05194989]
[1764099386532,0.04725307,135.07,135.06,1.83815516]
[1764099387827,0.04725307,135.07,135.06,4.83815516]
[1764099388027,0.04725307,135.07,135.06,3.0]
[1764099390232,0.04725307,135.07,135.04,0.05194989]
[1764099390443,0.04725307,135.07,135.04,3.05194989]
[1764099390837,5.44593498,135.07,135.06,1.83713538]
[1764099391038,5.44593498,135.07,135.04,0.05194989]
[1764099391235,5.44657821,135.07,135.05,1.83730112]
[1764099391456,109.10862514,135.06,134.96,3.0]
[1764099391632,6.58766051,135.03,134.96,3.0]
[1764099391833,30.95932514,135.02,134.96,3.0]
[1764099392032,12.06862514,135.01,134.96,3.0]
[1764099392232,5.39932514,135.0,134.96,3.0]
[1764099392546,0.05030258,134.99,134.97,0.04790416]
[1764099392843,6.58766051,135.07,134.97,3.04790416]
[1764099393143,30.95846109,135.06,135.03,1.83783099]
[1764099393334,5.39846109,135.05,135.03,1.83783099]
[1764099393535,25.56,135.06,135.03,1.83783099]
[1764099393841,25.6101936,135.06,135.04,1.83783099]
[1764099394035,25.6101936,135.06,135.03,0.04955006]
[1764099394248,5.39832645,135.05,135.03,0.04955006]
[1764099394842,32.2770936,135.06,135.04,1.83783971]
[1764099395137,5.39832265,135.05,135.03,0.04955006]
[1764099395541,25.6101936,135.06,135.03,0.04955006]
[1764099395740,5.39844801,135.05,135.03,0.04955006]
[1764099396135,32.2771936,135.06,135.03,0.04955006]
[1764099396340,32.2771936,135.06,135.04,1.83787246]
[1764099398440,103.7387,135.02,134.96,3.0]
[1764099398646,108.08062445,135.0,134.89,3.0]
[1764099398845,4.32452445,135.0,134.92,3.0]
[1764099399046,6.671,134.98,134.92,3.0]
[1764099399435,0.05683363,134.96,134.94,3.05226133]
[1764099401951,6.72863363,134.96,134.94,0.05226133]
[1764099402144,32.28863363,134.96,134.94,0.05226133]
[1764099402652,6.6732,134.94,134.9,3.0]
[1764099403148,0.05683363,134.96,134.9,3.0]
[1764099403746,0.05683363,134.96,134.93,3.0]
[1764099405347,0.05683363,134.96,134.92,0.05675255]
[1764099405543,0.05683363,134.96,134.92,3.05675255]
[1764099405944,6.72883363,134.96,134.92,3.05675255]
[1764099406149,0.05683363,134.96,134.92,3.05675255]
[1764099407352,6.72873363,134.96,134.92,3.05675255]
[1764099408547,6.6725,134.95,134.92,3.05675255]
[1764099408946,0.05683363,134.96,134.92,0.05675255]
[1764099409356,6.72873363,134.96,134.92,0.05675255]
[1764099409746,6.6723,134.95,134.92,0.05675255]
[1764099410446,6.6731,134.94,134.92,0.05675255]
[1764099410650,25.58,134.93,134.92,0.05675255]
[1764099411543,25.58,134.93,134.92,3.01675255]
[1764099411750,25.58,134.93,134.92,0.05675255]
[1764099412153,25.58,134.93,134.92,3.01675255]
[1764099412755,25.65683363,134.96,134.92,3.01675255]
[1764099413049,25.65683363,134.96,134.95,1.83501129]
[1764099414356,6.6722,134.95,134.92,0.05675255]
[1764099414858,6.6729,134.94,134.92,0.05675255]
[1764099415353,6.6729,134.94,134.93,1.83382219]
[1764099415558,6.6729,134.94,134.92,0.05675255]
[1764099420357,25.58,134.93,134.92,0.05675255]
[1764099420663,0.05683363,134.96,134.92,3.02675255]
[1764099420861,0.05683363,134.96,134.95,1.83042179]
[1764099421058,0.05683363,134.96,134.95,2.97]
[1764099423263,23.13127827,134.97,134.95,2.97]
[1764099423463,7.4779,135.04,134.96,2.97]
[1764099423671,26.39,135.03,135.01,1.82928533]
[1764099423966,0.81,135.02,135.01,1.82928533]
[1764099426568,32.29995719,135.03,135.01,1.82928533]
[1764099426966,33.10995719,135.03,135.01,1.82928533]
[1764099427875,0.81,135.02,135.01,1.82928533]
[1764099429159,6.71995719,135.03,135.01,1.82928533]
[1764099429369,25.58,135.02,135.01,4.79928533]
[1764099429564,25.58,135.02,135.01,2.97]
[1764099429867,25.58,135.02,135.0,0.05390689]
[1764099430065,25.58,135.02,135.0,3.02390689]
[1764099431471,26.39,135.02,135.0,0.05390689]
[1764099431680,104.5552,135.01,134.94,2.97]
[1764099431970,0.81,135.0,134.94,2.97]
[1764099432170,109.13505185,135.01,134.94,2.97]
[1764099432171,0.81,134.98,134.94,2.97]
[1764099432371,26.39,134.97,134.87,103.8492]
[1764099432576,6.6728,134.94,134.89,2.97]
[1764099432774,25.632045,134.93,134.9,0.05499179]
[1764099432973,25.632045,134.93,134.9,3.02499179]
[1764099434268,26.442045,134.93,134.9,0.05499179]
[1764099434473,25.632045,134.93,134.9,3.02499179]
[1764099435369,0.052045,134.93,134.9,3.02499179]
[1764099436074,104.5739,134.99,134.9,3.02499179]
[1764099436281,25.58,134.96,134.9,2.97]
[1764099436675,25.58,134.96,134.91,2.97]
[1764099437084,0.05681467,134.95,134.93,2.97]
[1764099440784,0.05681467,134.95,134.92,0.05408337]
[1764099440785,0.05681467,134.95,134.92,3.11408337]
[1764099441576,0.90681467,134.95,134.92,0.05408337]
[1764099442894,0.90681467,134.95,134.94,1.84055981]
[1764099443193,0.85,134.94,134.92,0.05408337]
[1764099443993,0.85,134.94,134.93,1.8413266]
[1764099444285,6.26652355,134.94,134.93,1.8413266]
[1764099444492,0.85,134.93,134.92,1.8413266]
[1764099444693,0.85,134.93,134.87,9.7361]
[1764099444887,0.85,134.93,134.92,1.84119261]
[1764099445087,0.85,134.93,134.91,0.0488746]
[1764099446495,0.85,134.93,134.92,1.84088841]
[1764099447101,6.26497041,134.93,134.92,1.84088841]
[1764099447900,6.26497041,134.93,134.91,0.0488746]
[1764099448098,0.85,134.93,134.91,0.0488746]
[1764099449098,0.85,134.92,134.91,0.0488746]
[1764099449400,0.90061945,134.94,134.91,0.0488746]
[1764099449698,6.26276598,134.93,134.92,1.84005996]
[1764099449889,6.26276598,134.93,134.91,0.0488746]
[1764099450090,0.85,134.93,134.91,0.0488746]
[1764099450492,7.5236,134.93,134.91,0.0488746]
[1764099450785,7.5236,134.93,134.92,1.83978114]
[1764099451188,0.05061945,134.94,134.92,4.89978114]
[1764099451396,0.05061945,134.94,134.91,0.0488746]
[1764099451397,25.58,134.93,134.91,0.0488746]
[1764099452099,26.43,134.93,134.92,1.83969031]
[1764099452501,33.1033,134.93,134.92,1.83969031]
[1764099452700,0.85,134.92,134.91,0.0488746]
[1764099453298,33.1033,134.93,134.91,0.0488746]
[1764099453605,7.5237,134.92,134.91,0.0488746]
[1764099453806,7.5237,134.92,134.85,3.06]
[1764099453807,0.85,134.9,134.85,3.06]
[1764099454307,25.58,134.89,134.85,3.06]
[1764099455006,0.05429353,134.88,134.85,3.06]
[1764099455607,0.05429353,134.88,134.86,3.06]
[1764099456002,0.05429353,134.88,134.8,103.9007]
[1764099456197,6.72999353,134.88,134.84,3.06]
[1764099457707,0.05429353,134.88,134.84,9.7376]
[1764099457898,0.05429353,134.88,134.85,3.06]
[1764099458409,6.73009353,134.88,134.85,3.06]
[1764099458607,0.05429353,134.88,134.85,3.06]
[1764099459303,0.05429353,134.88,134.85,9.7372]
[1764099459605,0.05429353,134.88,134.86,3.06]
[1764099463101,0.05429353,134.88,134.85,3.06]
[1764099463900,0.05429353,134.88,134.86,3.06]
[1764099465310,0.05429353,134.88,134.86,9.7367]
[1764099465609,0.05429353,134.88,134.87,3.06]
[1764099467310,0.85,134.94,134.88,3.11]
[1764099467605,0.9,134.96,134.9,3.11]
[1764099467805,0.9,134.94,134.9,9.7843]
[1764099468005,0.9,134.94,134.9,3.11]
[1764099468202,0.9,134.94,134.91,6.6741]
[1764099468402,0.049474,134.94,134.91,9.83763263]
[1764099468607,0.949474,134.94,134.91,9.83763263]
[1764099468802,0.949474,134.94,134.93,1.83649092]
[1764099468998,0.949474,134.94,134.92,1.83649092]
[1764099469202,0.049474,134.94,134.92,4.94649092]
[1764099469407,0.049474,134.94,134.92,3.11]
[1764099469604,0.049474,134.94,134.91,3.16353263]
[1764099469810,0.049474,134.94,134.93,1.83711822]
[1764099470211,0.949474,134.94,134.93,1.83711822]
[1764099470515,0.949474,134.94,134.93,1.83766345]
[1764099471217,0.949474,134.94,134.91,0.05353263]
[1764099471513,0.949474,134.94,134.93,1.8383431]
[1764099471914,0.049474,134.94,134.91,3.16353263]
[1764099475422,6.722174,134.94,134.91,3.16353263]
[1764099475622,0.049474,134.94,134.93,1.8420252]
[1764099476123,0.049474,134.94,134.91,3.16353263]
[1764099477323,0.049474,134.94,134.93,3.11]
[1764099480827,5.59566192,134.98,134.94,3.19]
[1764099481018,5.4229809,134.97,134.94,3.19]
[1764099481219,26.53,134.99,134.94,3.19]
[1764099481419,5.42318359,134.98,134.97,1.84363075]
[1764099482228,13.04398359,134.98,134.97,1.84363075]
[1764099482428,0.95,134.97,134.96,0.05388274]
[1764099482629,11.968415,134.97,134.96,0.05388274]
[1764099483226,6.672,134.96,134.91,3.19]
[1764099483426,5.42318359,134.95,134.91,3.19]
[1764099483630,7.622,134.96,134.91,3.19]
[1764099483830,5.42271098,134.95,134.91,3.19]
[1764099484029,7.622,134.96,134.91,3.19]
[1764099484232,5.47351518,134.95,134.92,3.24549925]
[1764099484428,0.05080719,134.95,134.92,3.24549925]
[1764099485122,1.0,134.99,134.94,3.19]
[1764099485327,12.0198583,134.98,134.96,1.84380577]
[1764099485630,5.42281952,134.97,134.96,1.84380577]
[1764099486032,5.42281952,134.97,134.96,5.03380577]
[1764099486235,0.05063886,134.98,134.97,3.19]
[1764099486430,0.05377338,134.99,134.97,3.19]
[1764099486629,119.22383421,135.06,134.96,0.04974744]
[1764099486630,11.02207912,135.03,135.0,3.19]
[1764099486928,5.59929915,135.04,135.03,3.19]
[1764099487132,5.42360557,135.04,135.03,3.19]
[1764099487338,5.42360557,135.04,134.97,3.19]
[1764099487535,5.42360557,135.03,135.02,5.03157268]
[1764099487737,5.42360557,135.03,134.99,0.05465169]
[1764099487938,1.05141711,135.04,135.02,1.84157254]
[1764099488231,1.0,135.02,134.99,0.05465169]
[1764099488436,1.05141711,135.04,135.0,5.0304771]
[1764099488631,5.32005341,135.03,135.0,3.19]
[1764099488832,5.32005341,135.02,135.0,3.19]
[1764099489032,5.32005341,135.01,135.0,3.19]
[1764099489234,5.32005341,135.02,134.99,3.24465169]
[1764099489438,5.32005341,135.01,135.0,1.83987029]
[1764099489640,11.98885341,135.02,135.0,1.83987029]
[1764099489831,6.6688,135.02,135.0,1.83987029]
[1764099490840,1.0,135.01,135.0,1.83987029]
[1764099491028,5.31610884,135.01,134.99,0.05465169]
[1764099491230,5.31531541,135.01,134.99,0.05465169]
[1764099491826,1.0,135.0,134.99,0.05465169]
[1764099492032,6.31345854,135.0,134.99,0.05465169]
[1764099492436,9.07905198,135.0,134.99,0.05465169]
[1764099492838,3.76559344,135.0,134.99,0.05465169]
[1764099493033,2.76559344,135.0,134.99,0.05465169]
[1764099493229,0.05698011,135.01,134.99,3.24465169]
[1764099493430,0.05698011,135.01,135.0,5.02840931]
[1764099493642,0.05698011,135.01,135.0,3.19]
[1764099495549,0.05698011,135.01,134.99,0.05465169]
[1764099496051,0.05698011,135.01,135.0,1.83701784]
[1764099497052,0.05698011,135.01,135.0,5.02701784]
[1764099497345,0.05698011,135.01,135.0,3.19]
[1764099497552,6.72628011,135.01,134.99,2.98465169]
[1764099497751,6.72628011,135.01,135.0,1.83639061]
[1764099497953,0.05698011,135.01,135.0,4.76639061]
[1764099498155,0.05698011,135.01,135.0,2.93]
[1764099500546,0.05698011,135.01,134.99,2.98465169]
[1764099501854,1.05698011,135.01,135.0,1.83585357]
[1764099502051,7.72628011,135.01,135.0,1.83585357]
[1764099502847,7.6703,134.99,134.96,2.93]
[1764099503357,6.6729,134.94,134.9,2.93]
[1764099503957,6.6729,134.94,134.88,6.6757]
[1764099503958,0.05477537,134.93,134.91,2.98674239]
[1764099504557,26.56,134.99,134.91,2.98674239]
[1764099504746,26.56,134.99,134.97,1.83720991]
[1764099504951,6.6708,134.98,134.97,1.83720991]
[1764099505250,6.6708,134.98,134.94,2.93]
[1764099505443,0.0552925,134.97,134.96,2.93]
[1764099506056,0.0552925,134.97,134.95,2.98328989]
[1764099508858,25.56,134.99,134.95,2.98328989]
[1764099509856,0.04871989,134.98,134.95,2.98328989]
[1764099510054,0.04871989,134.98,134.96,2.93]
[1764099512562,1.10871989,134.98,134.95,0.05328989]
[1764099512753,7.77961989,134.98,134.97,1.84148009]
[1764099512957,1.06,134.97,134.95,0.05328989]
[1764099513161,1.10871989,134.98,134.95,0.05328989]
[1764099514062,1.10871989,134.98,134.97,1.84162114]
[1764099514257,6.43341553,134.98,134.97,1.84162114]
[1764099514762,11.99657159,134.98,134.95,0.05328989]
[1764099514961,5.32469564,134.97,134.96,1.84222616]
[1764099515458,1.10871989,134.98,134.96,1.84222616]
[1764099515861,5.32672486,134.97,134.96,1.84222616]
[1764099516958,1.10871989,134.98,134.95,0.05328989]
[1764099517160,1.10871989,134.98,134.97,1.84287552]
[1764099517459,6.43706065,134.98,134.96,1.84287552]
[1764099517661,6.38834076,134.97,134.96,1.84287552]
[1764099518158,5.32834076,134.97,134.96,1.84287552]
[1764099520465,6.38834076,134.97,134.96,1.84287552]
[1764099521168,1.06,134.96,134.95,0.05328989]
[1764099521357,6.38834076,134.96,134.95,0.05328989]
[1764099521565,5.32834076,134.96,134.95,0.05328989]
[1764099521954,5.32834076,134.96,134.95,2.98328989]
[1764099522155,1.06,134.97,134.95,0.05328989]
[1764099522461,5.33498151,134.96,134.95,0.05328989]
[1764099523360,29.93440005,134.98,134.95,2.98328989]
[1764099523567,5.33496169,134.97,134.96,1.84408432]
[1764099526965,6.39496169,134.97,134.96,1.84408432]
[1764099527166,6.39496169,134.97,134.95,0.05328989]
[1764099527361,0.04871989,134.98,134.96,2.95]
[1764099527760,26.62,135.03,134.98,2.95]
[1764099527761,5.33607539,135.01,134.98,2.95]
[1764099527963,25.56,135.03,135.01,2.95]
[1764099528156,25.56,135.03,135.02,4.79347886]
[1764099528368,12.07656076,135.09,135.03,2.95]
[1764099528570,1.06,135.07,135.05,1.8425812]
[1764099528759,1.06,135.07,135.05,1.89507938]
[1764099528760,6.39565541,135.06,135.05,1.89507938]
[1764099528955,6.39565541,135.06,135.05,0.05249818]
[1764099529157,6.39565541,135.06,135.05,1.89507961]
[1764099529354,1.06,135.05,135.0,2.95]
[1764099529560,5.33565541,135.04,135.02,1.84215265]
[1764099529761,5.33565541,135.03,135.02,1.84215265]
[1764099530868,0.04883168,135.04,135.01,3.00137479]
[1764099531069,5.36348434,135.03,135.01,3.00137479]
[1764099531368,13.32665848,135.04,135.02,1.84192422]
[1764099531571,5.3617395,135.03,135.02,1.84192422]
[1764099532370,6.4217395,135.03,135.02,1.84192422]
[1764099532869,31.9817395,135.03,135.02,1.84192422]
[1764099534166,30.9217395,135.03,135.02,1.84192422]
[1764099535565,31.9817395,135.03,135.02,1.84192422]
[1764099535762,5.3617395,135.03,135.02,4.79192422]
[1764099535963,0.04883168,135.04,135.03,2.95]
[1764099538777,25.56,135.07,135.03,2.95]
[1764099539080,25.56,135.07,135.04,2.95]
[1764099539469,5.54163687,135.12,135.05,3.15]
[1764099539674,1.05,135.12,135.1,1.8377852]
[1764099539981,1.10622214,135.12,135.1,0.05211497]
[1764099540282,1.05,135.11,135.1,0.05211497]
[1764099540579,6.40412809,135.11,135.1,0.05211497]
[1764099540882,7.7154,135.09,135.04,3.15]
[1764099541079,7.7154,135.09,135.08,1.83804005]
[1764099542280,1.05,135.08,135.07,0.05040036]
[1764099542468,25.56,135.08,135.07,0.05040036]
[1764099543177,26.61,135.08,135.07,0.05040036]
[1764099544084,25.56,135.08,135.07,0.05040036]
[1764099545782,26.61,135.08,135.07,0.05040036]
[1764099546774,26.61,135.08,135.04,3.15]
[1764099546775,1.05,135.07,135.04,3.15]
[1764099546983,104.7517,135.07,135.01,3.15]
[1764099547277,1.05,135.07,135.01,3.15]
[1764099547784,0.05001888,135.05,135.03,0.04897033]
[1764099548481,0.05001888,135.05,134.98,3.15]
[1764099548680,25.54,135.05,135.04,3.15]
[1764099548982,32.2069,135.06,135.02,3.15]
[1764099549172,33.2569,135.06,135.02,3.15]
[1764099549373,0.04809259,135.05,135.03,0.05043109]
[1764099549688,0.04809259,135.05,135.03,3.20043109]
[1764099550483,318.39700354,135.17,135.04,3.15]
[1764099550676,5.3317883,135.13,135.09,3.15]
[1764099550877,1.05,135.14,135.11,1.83289917]
[1764099551076,6.6639,135.12,135.09,3.15]
[1764099551377,0.05543202,135.12,135.11,1.8323293]
[1764099551576,0.05543202,135.12,135.09,3.19681549]
[1764099553086,25.54,135.16,135.11,3.15]
[1764099553285,26.59,135.16,135.15,1.82975434]
[1764099553484,32.2021,135.16,135.11,3.15]
[1764099553783,25.54,135.16,135.15,1.82855697]
[1764099554182,25.54,135.16,135.14,0.05535408]
[1764099554485,26.59,135.16,135.15,1.82819889]
[1764099554685,1.05,135.15,135.11,3.15]
[1764099554885,1.05,135.15,135.14,1.82719163]
[1764099555790,1.05,135.15,135.13,0.05060626]
[1764099555984,1.05,135.15,135.13,1.87686716]
[1764099556185,1.05,135.15,135.13,0.05060626]
[1764099556487,1.05,135.15,135.13,1.8767199]
[1764099556790,1.05,135.15,135.13,0.05060626]
[1764099556990,1.05,135.15,135.13,1.87624321]
[1764099557179,25.54,135.16,135.13,2.92060626]
[1764099557580,25.54,135.16,135.14,1.82477115]
[1764099557785,1.09908389,135.17,135.14,4.69477115]
[1764099558086,25.58908389,135.17,135.15,1.82477115]
[1764099558281,25.58908389,135.17,135.14,2.87]
[1764099558282,26.63908389,135.17,135.13,0.05060626]
[1764099558485,1.05,135.16,135.15,1.82412046]
[1764099559581,1.05,135.16,135.13,2.92060626]
[1764099559782,26.63908389,135.17,135.13,2.92060626]
[1764099559977,26.63908389,135.17,135.16,1.82356226]
[1764099560691,25.58908389,135.17,135.13,2.92060626]
[1764099562482,25.58908389,135.17,135.16,1.82220352]
[1764099562686,25.58908389,135.17,135.13,2.92060626]
[1764099563987,25.58908389,135.17,135.13,0.05060626]
[1764099563988,1.05,135.16,135.13,0.05060626]
[1764099564298,1.05,135.15,135.13,0.05060626]
[1764099564492,1.05,135.15,135.14,1.82271749]
[1764099564993,7.7125,135.15,135.14,1.82271749]
[1764099565396,1.05,135.15,135.14,1.82271749]
[1764099570199,25.58908389,135.17,135.14,1.82271749]
[1764099570405,0.04908389,135.17,135.15,4.69271749]
[1764099570597,25.58908389,135.17,135.15,2.87]
[1764099572399,25.58908389,135.17,135.14,2.87]
[1764099573404,0.04908389,135.17,135.15,2.87]
[1764099573797,10.8527986,135.21,135.15,2.87]
[1764099573995,1.05,135.2,135.18,1.82837527]
[1764099574907,1.10329997,135.2,135.18,1.87923383]
[1764099575202,1.10329997,135.2,135.18,0.05085856]
[1764099575411,1.10329997,135.2,135.18,1.87931644]
[1764099575607,1.10329997,135.2,135.18,0.05085856]
[1764099575903,6.71329997,135.2,135.18,1.87906739]
[1764099576095,1.05,135.19,135.18,0.05085856]
[1764099576296,1.05,135.19,135.18,1.87952502]
[1764099576617,0.05329997,135.2,135.18,0.05085856]
[1764099576801,0.05329997,135.2,135.18,1.87927367]
[1764099577111,0.05329997,135.2,135.18,2.92085856]
[1764099579407,0.05329997,135.2,135.19,2.87]
[1764099580103,0.05329997,135.2,135.18,0.05085856]
[1764099580309,0.05329997,135.2,135.18,2.92085856]
[1764099584909,1.10329997,135.2,135.18,0.05085856]
[1764099585406,1.10329997,135.2,135.18,2.92085856]
[1764099585600,0.05329997,135.2,135.18,2.92085856]
[1764099588404,0.05329997,135.2,135.19,2.88]
[1764099589214,0.05329997,135.2,135.19,9.5404]
[1764099589406,0.05329997,135.2,135.19,2.88]
[1764099590108,5.34212746,135.26,135.2,2.88]
[1764099590306,14.73440944,135.27,135.23,4.71024742]
[1764099590511,6.44212746,135.26,135.23,2.88]
[1764099590708,5.34212746,135.26,135.25,2.88]
[1764099590913,5.34212746,135.27,135.25,2.88]
[1764099591108,5.39662555,135.27,135.25,2.93133431]
[1764099591318,0.05449809,135.27,135.26,4.70947898]
[1764099591515,0.05449809,135.27,135.26,2.88]
[1764099591710,5.34212746,135.29,135.26,2.88]
[1764099591915,5.34212746,135.3,135.28,2.88]
[1764099592215,5.53374107,135.31,135.28,2.88]
[1764099592415,5.32198228,135.3,135.28,2.88]
[1764099592718,6.48198228,135.29,135.28,0.05127037]
[1764099592911,12.01572335,135.29,135.28,0.05127037]
[1764099593112,1.16,135.29,135.28,0.05127037]
[1764099593617,7.8155,135.29,135.28,0.05127037]
[1764099593813,9.2955,135.29,135.28,0.05127037]
[1764099594014,12.0163377,135.29,135.23,2.88]
[1764099594211,6.6562,135.28,135.27,1.83040444]
[1764099594812,7.8162,135.28,135.27,1.83040444]
[1764099595013,1.16,135.27,135.26,1.87843993]
[1764099595318,1.16,135.27,135.26,0.04803549]
[1764099595516,1.16,135.27,135.26,1.87961143]
[1764099595815,1.16,135.27,135.26,0.04803549]
[1764099596002,1.16,135.27,135.26,1.87961143]
[1764099596204,1.16,135.27,135.26,0.04803549]
[1764099596407,1.16,135.27,135.26,1.87955486]
[1764099596609,1.16,135.27,135.26,0.04803549]
[1764099596828,1.16,135.27,135.26,1.87955486]
[1764099597217,1.16,135.27,135.26,0.04803549]
[1764099597417,37.48323795,135.28,135.26,1.87933083]
[1764099597622,37.48323795,135.28,135.26,0.04803549]
[1764099597924,33.3162,135.28,135.27,1.83129534]
[1764099598123,33.3162,135.28,135.26,0.04803549]
[1764099598425,33.3162,135.28,135.27,1.83120679]
[1764099600725,38.64094729,135.28,135.26,0.04803549]
[1764099601628,33.3162,135.28,135.27,1.83047561]
[1764099602027,33.3162,135.28,135.26,0.04803549]
[1764099603130,6.6565,135.27,135.26,0.04803549]
[1764099603331,7.8165,135.27,135.26,0.04803549]
[1764099604124,32.06067791,135.28,135.26,2.98803549]
[1764099604125,5.32350631,135.28,135.26,2.98803549]
[1764099604425,0.05286901,135.29,135.28,2.94]
[1764099604636,5.32397001,135.32,135.28,2.94]
[1764099604932,25.5,135.32,135.31,1.83014626]
[1764099605127,25.5,135.32,135.3,2.94]